bitfinex/quotes_ETHUSD_20260208
["timestamp","ask_amount","ask_price","bid_price","bid_amount"]
[1770577288113,1.01551706,2114.7,2113.9,1.18260653]
[1770577288309,1.01551706,2114.7,2113.9,1.18264818]
[1770577288540,0.96780827,2114.7,2113.9,1.18264818]
[1770577288847,0.96780827,2114.6,2113.9,1.18264818]
[1770577289344,1.01551706,2114.5,2113.8,4.48866694]
[1770577289514,0.96780827,2114.5,2113.8,4.48866694]
[1770577290646,1.01551706,2114.4,2113.8,4.48866694]
[1770577290951,1.01551706,2114.3,2113.3,8.03685472]
[1770577291236,0.04770879,2114.0,2113.8,0.0011]
[1770577291439,0.96780827,2114.1,2113.8,0.0011]
[1770577291921,0.04770879,2114.4,2113.8,0.0011]
[1770577291922,1.01551706,2114.0,2113.8,0.0011]
[1770577292344,0.96780827,2114.2,2113.8,0.0011]
[1770577292639,2.15031149,2114.2,2113.8,0.0011]
[1770577293020,1.01551706,2114.1,2113.8,0.0011]
[1770577293623,1.01551706,2114.1,2112.0,5.27137909]
[1770577293624,1.01551706,2113.5,2112.8,1.18322211]
[1770577293824,1.01551706,2113.5,2113.0,0.0011]
[1770577293825,0.96780827,2113.5,2113.0,0.0011]
[1770577294712,0.96780827,2113.5,2113.1,0.0011]
[1770577294914,0.96780827,2113.5,2113.0,0.0011]
[1770577296558,0.04770879,2114.1,2113.1,0.92535257]
[1770577296559,1.18254137,2114.1,2113.1,0.92535257]
[1770577296846,2.15034964,2114.1,2113.2,1.18413993]
[1770577297220,2.19805843,2114.1,2113.3,0.0011]
[1770577297638,2.19805843,2114.1,2113.4,0.0011]
[1770577297843,2.19805843,2114.1,2113.3,0.0011]
[1770577298246,2.19805843,2114.1,2113.2,1.18303993]
[1770577298247,2.19805843,2114.1,2113.4,0.0011]
[1770577298446,2.19805843,2114.1,2113.3,0.0011]
[1770577298637,2.19806411,2114.1,2113.3,0.0011]
[1770577298821,0.96780827,2114.0,2113.4,0.0011]
[1770577299020,0.96780827,2114.0,2113.3,0.0011]
[1770577299449,0.96780827,2114.0,2113.4,0.0011]
[1770577299654,0.96780827,2114.0,2113.3,0.0011]
[1770577300219,0.96780827,2114.0,2113.2,1.18303993]
[1770577300220,0.96780827,2114.0,2113.4,0.0011]
[1770577300420,1.01551706,2113.8,2113.3,0.0011]
[1770577300718,0.04770879,2113.5,2112.9,0.0011]
[1770577300929,0.04770879,2113.5,2112.9,0.0022]
[1770577301258,0.04770879,2113.5,2113.0,0.0011]
[1770577301922,1.01551706,2113.5,2113.0,0.0011]
[1770577303054,0.04770879,2113.4,2113.2,0.0011]
[1770577303622,1.01551706,2113.5,2113.2,0.0011]
[1770577304151,2.19840159,2113.5,2113.2,0.0011]
[1770577304355,0.96780827,2113.4,2113.2,0.0011]
[1770577305063,0.96780827,2113.4,2113.0,0.0011]
[1770577305064,0.99307352,2113.2,2113.0,0.0011]
[1770577305362,1.18298395,2113.3,2113.0,0.0011]
[1770577305363,1.04078231,2113.1,2113.0,0.0011]
[1770577305543,0.99307352,2113.1,2112.4,3.3061]
[1770577305728,0.99307352,2113.1,2112.5,0.0011]
[1770577305930,0.04770879,2112.9,2112.5,0.0011]
[1770577306143,0.04770879,2112.6,2112.5,0.0011]
[1770577306348,0.99307352,2112.6,2112.4,0.0011]
[1770577306662,1.04078231,2112.5,2112.4,0.0011]
[1770577306852,0.99307352,2112.5,2112.4,0.0011]
[1770577307037,0.99307352,2112.7,2112.4,0.0011]
[1770577307627,0.04770879,2112.6,2112.4,0.0011]
[1770577307951,4.88229353,2113.2,2112.4,0.0011]
[1770577307952,1.23052483,2113.7,2112.4,0.91936501]
[1770577308125,1.23052483,2113.7,2112.5,0.0011]
[1770577308126,1.04078231,2113.4,2112.5,0.0011]
[1770577308326,1.23052483,2113.7,2112.6,0.0011]
[1770577308327,0.04770879,2113.6,2112.6,0.0011]
[1770577308548,0.99307352,2113.6,2112.5,0.91936501]
[1770577308935,0.99307352,2113.6,2112.6,0.0011]
[1770577309137,2.17593467,2113.6,2112.6,0.91936501]
[1770577309459,0.99307352,2113.6,2112.6,0.91936501]
[1770577309639,2.17590633,2113.6,2112.6,0.91936501]
[1770577311079,0.04770879,2113.4,2112.7,1.18331992]
[1770577312361,2.17678633,2113.8,2112.8,0.91936501]
[1770577312530,0.04770879,2113.7,2112.8,0.91936501]
[1770577312860,1.04078231,2113.7,2112.9,0.0011]
[1770577313059,1.04078231,2113.7,2112.8,0.0011]
[1770577313258,1.04078231,2113.7,2112.9,0.0011]
[1770577313560,1.04078231,2113.7,2112.8,0.91936501]
[1770577313764,2.22356415,2113.7,2112.8,0.91936501]
[1770577313962,1.04078231,2113.7,2112.9,0.0011]
[1770577314363,1.04078231,2113.7,2113.0,0.0011]
[1770577314567,1.04078231,2113.7,2112.9,0.0011]
[1770577315146,0.001,2113.2,2113.0,0.0011]
[1770577315346,0.001,2113.2,2112.9,1.18430791]
[1770577315666,0.001,2113.2,2113.0,0.0011]
[1770577316046,0.001,2113.2,2113.1,0.0011]
[1770577316246,0.001,2113.2,2113.0,0.0011]
[1770577316745,0.001,2113.2,2113.1,0.0011]
[1770577316944,0.001,2113.2,2112.6,0.0011]
[1770577316945,0.99307352,2113.0,2112.6,0.0011]
[1770577317570,2.17622845,2113.0,2112.6,0.0011]
[1770577317776,1.04078231,2112.8,2112.4,0.0011]
[1770577317943,0.04770879,2112.5,2112.4,0.0011]
[1770577318145,1.04078231,2112.5,2112.1,0.0011]
[1770577319292,1.04078231,2112.5,2111.3,0.0011]
[1770577319293,0.99307352,2112.3,2111.3,0.0011]
[1770577319582,0.04770879,2111.9,2111.4,0.0033]
[1770577320779,2.17656149,2112.4,2111.5,1.18397969]
[1770577320979,0.1024,2112.7,2111.5,2.1055447]
[1770577320980,1.18341303,2112.6,2111.5,2.1055447]
[1770577321285,2.17641189,2112.7,2111.5,2.1055447]
[1770577321580,0.04770879,2112.5,2111.6,0.91826501]
[1770577322074,0.99307352,2112.7,2111.7,0.92156501]
[1770577323176,0.04770879,2112.5,2111.7,0.92156501]
[1770577323475,2.22049434,2112.5,2111.7,0.0033]
[1770577323677,0.99307352,2112.4,2111.7,0.0033]
[1770577324482,1.04078231,2112.7,2111.7,0.0033]
[1770577325350,0.99307352,2112.7,2111.7,1.18718028]
[1770577325553,0.04770879,2112.8,2111.9,0.91826501]
[1770577325751,0.99407352,2113.2,2111.9,0.91826501]
[1770577325752,0.001,2113.2,2111.9,0.91826501]
[1770577325954,0.001,2113.8,2112.4,0.91826501]
[1770577326173,0.04770879,2113.4,2112.5,3.308]
[1770577326357,0.99307352,2113.6,2112.5,3.308]
[1770577326550,0.04770879,2113.4,2112.6,0.0033]
[1770577326753,0.04770879,2113.4,2112.4,0.0033]
[1770577326988,1.04078231,2113.7,2112.4,0.92156501]
[1770577327148,1.04078231,2113.7,2112.7,0.0011]
[1770577327580,0.001,2113.4,2112.8,0.0033]
[1770577330695,0.001,2113.4,2112.8,0.92156501]
[1770577331083,0.99407352,2113.8,2112.9,0.92056501]
[1770577331084,0.04870879,2113.8,2112.9,0.92056501]
[1770577331305,0.001,2113.8,2112.9,0.92056501]
[1770577331673,0.001,2113.8,2113.0,1.18315191]
[1770577333993,0.04770879,2113.7,2113.1,0.0023]
[1770577334487,1.04078231,2113.7,2113.1,0.0023]
[1770577336379,0.04770879,2113.4,2113.1,0.0023]
[1770577336581,0.04770879,2113.4,2112.7,1.18441992]
[1770577336582,1.00681898,2113.4,2112.7,1.18441992]
[1770577336763,1.00681898,2113.4,2112.8,0.0023]
[1770577337473,1.00681898,2113.4,2112.9,0.0023]
[1770577337474,0.04770879,2113.4,2112.9,0.0023]
[1770577337685,0.04770879,2113.4,2112.8,0.0023]
[1770577338096,0.04770879,2113.4,2112.9,0.0023]
[1770577338302,0.04770879,2113.4,2112.8,0.0023]
[1770577338770,0.04770879,2113.4,2112.9,0.0023]
[1770577338967,0.04770879,2113.4,2112.8,0.0023]
[1770577339966,0.04870879,2113.4,2112.8,0.0023]
[1770577341306,0.001,2113.4,2112.8,0.0023]
[1770577341977,0.04870879,2113.4,2112.8,0.0023]
[1770577343789,0.001,2113.4,2112.8,0.98494606]
[1770577343991,0.001,2113.8,2112.8,0.98264606]
[1770577344196,0.001,2113.8,2112.9,0.98494606]
[1770577344391,0.001,2113.8,2113.1,0.98264606]
[1770577344593,0.96011019,2113.8,2113.2,0.0023]
[1770577344798,1.00681898,2113.7,2113.2,0.0023]
[1770577345368,1.00681898,2113.7,2113.0,3.307]
[1770577345578,1.00681898,2113.7,2113.1,0.0023]
[1770577345781,0.04770879,2113.7,2113.1,1.18539592]
[1770577349004,0.04770879,2113.4,2113.1,0.0023]
[1770577349301,1.00681898,2113.4,2112.9,1.18320764]
[1770577349495,0.04770879,2113.4,2113.0,1.18544175]
[1770577349694,0.001,2113.8,2113.0,1.18314175]
[1770577349902,0.001,2113.8,2113.1,0.0023]
[1770577349903,0.04770879,2113.7,2113.1,0.0023]
[1770577350798,0.001,2113.8,2113.1,0.0023]
[1770577350969,0.04770879,2113.7,2113.1,0.0023]
[1770577351804,0.001,2113.8,2113.1,0.0023]
[1770577351973,0.001,2113.8,2113.2,0.0023]
[1770577352170,0.001,2113.5,2113.2,0.0023]
[1770577355087,0.96011019,2113.5,2113.0,0.0011]
[1770577355401,0.04770879,2113.3,2113.0,0.0034]
[1770577355805,0.001,2113.5,2113.0,0.0034]
[1770577356105,0.04870879,2113.5,2113.1,0.0023]
[1770577356607,0.04870879,2113.5,2113.0,0.0011]
[1770577356906,2.19069396,2113.5,2113.1,0.0023]
[1770577357931,0.04770879,2113.2,2113.1,0.0023]
[1770577359026,0.04770879,2113.2,2112.8,0.0011]
[1770577359027,1.00681898,2113.2,2112.8,0.0011]
[1770577359196,1.00681898,2113.2,2112.8,0.0034]
[1770577359901,1.18309592,2113.1,2112.8,0.0034]
[1770577360421,1.13309592,2113.1,2112.8,0.0034]
[1770577364818,1.13309592,2113.1,2113.0,0.0011]
[1770577367931,2.04627557,2113.1,2113.0,0.0011]
[1770577368224,0.91317965,2113.0,2112.5,0.0011]
[1770577368423,0.96088844,2112.7,2112.5,0.0011]
[1770577369024,0.04770879,2112.7,2112.5,0.0011]
[1770577369608,1.2309727,2112.8,2112.5,0.0011]
[1770577369918,1.2309727,2112.8,2111.9,0.0011]
[1770577369919,0.91317965,2112.7,2111.9,0.0011]
[1770577370218,0.04770879,2112.5,2112.0,1.18371159]
[1770577370423,0.04770879,2112.5,2112.0,2.14682666]
[1770577371405,0.04770879,2112.5,2112.0,0.96311507]
[1770577371603,0.04770879,2112.5,2112.0,2.1468146]
[1770577371923,2.14415235,2112.8,2112.0,2.1468146]
[1770577372328,1.18326107,2112.9,2112.1,0.96311507]
[1770577372501,1.23093111,2112.9,2112.1,0.96311507]
[1770577373429,0.04770879,2112.9,2112.1,0.96311507]
[1770577374003,5.40331903,2113.1,2112.2,2.1467151]
[1770577374231,0.04770879,2112.9,2112.2,2.1467151]
[1770577376124,1.23093279,2112.9,2112.2,2.1467151]
[1770577376627,1.23093279,2112.9,2112.2,2.1478151]
[1770577376929,0.001,2112.7,2112.2,2.1478151]
[1770577377426,0.001,2112.7,2112.3,0.96311507]
[1770577378414,0.001,2112.7,2112.4,1.18348797]
[1770577379229,0.001,2112.7,2112.3,2.14661795]
[1770577381430,0.001,2112.7,2112.4,0.96311507]
[1770577383631,0.001,2112.7,2112.4,2.14656251]
[1770577383851,0.001,2112.7,2112.5,0.96311507]
[1770577384135,0.001,2112.7,2112.4,1.18344744]
[1770577384733,0.001,2112.7,2112.5,0.96311507]
[1770577384912,1.18398673,2113.3,2112.5,0.96311507]
[1770577385113,0.04770879,2113.2,2112.5,0.96311507]
[1770577385636,1.18398673,2113.3,2112.7,0.96311507]
[1770577385637,0.04870879,2113.3,2112.7,0.96311507]
[1770577385834,0.001,2113.3,2112.7,0.96311507]
[1770577386033,0.04870879,2113.3,2112.6,1.18337593]
[1770577386711,0.96188844,2113.3,2112.6,1.18337593]
[1770577389639,0.91317965,2113.2,2112.8,0.0011]
[1770577389816,0.001,2113.1,2112.8,0.0011]
[1770577390944,4.73258598,2113.5,2112.9,0.96311507]
[1770577390945,0.001,2113.5,2112.9,0.96311507]
[1770577393139,0.001,2113.5,2113.0,1.18315191]
[1770577393734,0.96088844,2113.4,2112.8,3.3081]
[1770577393940,0.96088844,2113.4,2112.8,4.49135673]
[1770577394955,0.96088844,2113.4,2112.8,1.18435673]
[1770577395749,2.14386629,2113.4,2112.8,0.0011]
[1770577396055,0.9520088,2113.3,2112.8,0.0011]
[1770577397547,0.6,2113.1,2112.8,0.0011]
[1770577398057,0.9520088,2113.3,2112.8,0.0011]
[1770577398561,2.1349975,2113.3,2112.8,0.0011]
[1770577399258,0.04770879,2113.2,2112.8,0.0011]
[1770577401861,0.001,2113.1,2112.8,0.0011]
[1770577410064,0.001,2113.1,2112.8,0.9214618]
[1770577412061,0.001,2113.1,2112.9,1.18320791]
[1770577412267,0.001,2113.1,2113.0,0.9203618]
[1770577412463,0.001,2113.1,2112.9,1.18320791]
[1770577412644,0.001,2113.1,2112.9,2.10356971]
[1770577412843,0.001,2113.5,2113.0,0.9203618]
[1770577413946,0.001,2113.5,2113.0,0.9214618]
[1770577414340,0.001,2113.1,2113.0,2.10461371]
[1770577414569,0.001,2113.1,2113.0,1.18425191]
[1770577418077,0.001,2113.1,2113.0,0.0011]
[1770577424076,1.18390347,2113.5,2113.0,5.25020026]
[1770577424077,0.001,2113.5,2113.0,5.25020026]
[1770577424271,0.001,2113.5,2113.2,5.24910026]
[1770577424658,0.001,2113.5,2113.1,0.9203618]
[1770577425664,0.001,2113.5,2113.2,0.0011]
[1770577427702,1.00804133,2113.4,2113.0,0.0011]
[1770577427984,0.96033254,2113.4,2113.0,0.0011]
[1770577428761,0.001,2113.5,2113.0,0.0022]
[1770577428965,4.73114014,2113.7,2113.0,0.0022]
[1770577428966,0.001,2113.8,2113.2,0.98721184]
[1770577429888,0.001,2113.8,2113.3,0.0011]
[1770577430057,0.001,2113.8,2113.2,0.0011]
[1770577432787,1.00804133,2113.7,2113.3,0.0011]
[1770577432965,1.00804133,2113.7,2113.0,1.1842104]
[1770577433164,0.6,2113.6,2113.1,0.98831184]
[1770577433581,0.6,2113.6,2113.2,0.0011]
[1770577434082,0.6,2113.6,2113.3,0.98831184]
[1770577434389,0.6,2113.6,2113.3,0.98721184]
[1770577434587,0.6,2113.6,2113.4,1.18402798]
[1770577434761,0.001,2113.8,2113.4,1.18402798]
[1770577435159,0.001,2113.8,2113.4,2.17123982]
[1770577435463,0.001,2113.8,2113.5,0.0011]
[1770577436189,4.48939307,2114.4,2113.5,0.98721184]
[1770577436392,1.00804133,2114.3,2113.6,0.0011]
[1770577436570,0.96033254,2114.1,2113.6,0.0011]
[1770577437361,1.00804133,2114.0,2113.6,0.0011]
[1770577437775,0.96033254,2114.0,2113.6,0.0011]
[1770577439268,2.19063547,2114.0,2113.4,0.0011]
[1770577439594,1.00804133,2114.0,2113.5,0.0011]
[1770577439894,1.00804133,2113.6,2113.4,0.0011]
[1770577440268,1.00804133,2113.6,2113.1,0.0011]
[1770577440791,0.04770879,2113.5,2113.1,0.0022]
[1770577440985,0.96033254,2113.4,2113.1,0.0011]
[1770577441693,1.00804133,2113.2,2113.1,0.0011]
[1770577442377,1.00804133,2113.2,2112.8,0.0011]
[1770577442573,2.19094055,2113.5,2112.8,0.0044]
[1770577442773,1.23060801,2113.5,2112.8,0.0044]
[1770577443082,0.96033254,2113.4,2112.8,0.0044]
[1770577443486,0.04770879,2113.2,2112.8,0.0044]
[1770577444896,0.6,2113.0,2112.8,0.0044]
[1770577445999,4.73148805,2113.6,2112.8,0.0044]
[1770577446000,0.96033254,2113.8,2112.9,0.98721184]
[1770577446169,0.96033254,2113.5,2112.8,0.0011]
[1770577446374,1.00804133,2113.4,2112.8,0.0011]
[1770577446570,0.96033254,2113.7,2112.8,0.98831184]
[1770577447485,0.04770879,2113.5,2112.8,0.0011]
[1770577447692,1.00804133,2113.5,2112.8,0.0011]
[1770577447896,2.14314656,2113.7,2112.8,0.0011]
[1770577448071,2.14314656,2113.7,2112.8,0.98831184]
[1770577448273,0.04770879,2113.5,2112.8,0.98831184]
[1770577448581,1.00804133,2113.5,2112.8,0.0011]
[1770577448776,2.14314656,2113.7,2112.8,0.98831184]
[1770577448984,0.04770879,2113.5,2112.8,0.98831184]
[1770577449901,0.04770879,2113.5,2112.8,0.0011]
[1770577450096,1.23059854,2113.5,2113.0,0.0011]
[1770577450405,0.001,2113.2,2113.0,0.0011]
[1770577455683,0.97589958,2113.2,2113.0,0.0011]
[1770577456507,0.001,2113.2,2113.0,0.0011]
[1770577462992,2.80570429,2113.1,2112.8,0.0011]
[1770577463202,1.02260837,2113.0,2112.5,0.0011]
[1770577464620,0.97489958,2113.0,2112.5,0.0011]
[1770577464821,1.83080471,2113.1,2112.5,1.18450153]
[1770577465006,2.80570429,2113.1,2112.5,0.0011]
[1770577465721,0.64770879,2113.1,2112.5,0.0011]
[1770577465893,1.83081115,2113.1,2112.5,0.0011]
[1770577466095,1.57489958,2113.1,2112.5,0.0011]
[1770577466294,1.78309709,2113.1,2112.5,0.0011]
[1770577466921,0.6,2113.1,2112.5,0.0011]
[1770577467127,2.75799968,2113.1,2112.5,0.0011]
[1770577467428,0.97489958,2113.0,2112.5,0.0011]
[1770577469023,1.7831001,2113.1,2112.5,0.0011]
[1770577469024,0.6,2113.1,2112.5,0.0011]
[1770577469319,0.6,2113.1,2112.5,0.98885437]
[1770577471217,0.6,2113.1,2112.5,2.17223113]
[1770577472723,1.78311322,2113.1,2112.5,2.17223113]
[1770577472927,0.04770879,2112.9,2112.5,0.0011]
[1770577473100,2.15808417,2113.0,2112.5,0.0011]
[1770577473428,0.04770879,2112.9,2112.7,0.0011]
[1770577474931,0.04770879,2112.8,2112.7,0.0011]
[1770577475832,0.97489958,2112.7,2112.1,0.0011]
[1770577476129,1.02260837,2112.5,2112.1,0.0011]
[1770577477219,0.04770879,2112.2,2112.1,0.0011]
[1770577478302,0.04770879,2112.2,2111.9,0.0011]
[1770577478303,0.97489958,2112.1,2111.9,0.0011]
[1770577479422,0.97489958,2112.1,2111.7,0.0011]
[1770577479806,2.2062084,2112.2,2111.7,0.0011]
[1770577480925,0.04770879,2111.9,2111.7,0.0011]
[1770577481099,1.02260837,2111.9,2111.7,0.0011]
[1770577481725,2.20642732,2111.9,2111.7,0.0011]
[1770577481901,0.97489958,2111.8,2111.7,0.0011]
[1770577482530,1.23152774,2111.9,2111.7,0.0011]
[1770577484746,2.20642732,2111.9,2111.3,0.0011]
[1770577485434,0.04770879,2111.6,2111.3,0.0011]
[1770577485649,1.02177248,2111.6,2111.1,0.0011]
[1770577486311,0.04770879,2111.5,2111.1,0.0011]
[1770577486631,3.308,2111.8,2111.1,0.95188443]
[1770577487410,1.18360003,2112.2,2111.1,0.95188443]
[1770577487735,0.6,2111.8,2111.1,0.95188443]
[1770577489044,0.6,2111.8,2111.3,0.95078443]
[1770577491350,0.04770879,2111.7,2111.1,0.95188443]
[1770577491651,0.04770879,2111.7,2111.2,1.18415835]
[1770577491827,1.78385817,2111.8,2111.2,1.18415835]
[1770577491828,0.64770879,2111.8,2111.2,1.18415835]
[1770577492549,1.83156529,2111.8,2111.2,1.18415399]
[1770577493048,0.64770879,2111.8,2111.3,1.18409336]
[1770577493220,0.64770879,2111.8,2111.2,1.18412078]
[1770577493725,1.83154324,2111.8,2111.2,1.18412078]
[1770577493923,1.83154324,2111.8,2111.1,5.68874477]
[1770577493924,1.83154324,2111.8,2111.1,2.1360624]
[1770577494350,0.04770879,2111.5,2111.1,0.0011]
[1770577494722,1.02177248,2111.5,2111.1,0.0011]
[1770577495231,2.15808714,2111.5,2110.9,0.0011]
[1770577495435,0.04770879,2111.4,2110.9,0.0011]
[1770577497338,1.23176913,2111.4,2110.9,0.0011]
[1770577497538,1.23176913,2111.4,2111.1,0.0011]
[1770577498550,0.97406369,2111.3,2111.1,0.0011]
[1770577499653,1.18416066,2111.2,2111.1,0.0011]
[1770577500859,1.18500925,2111.5,2111.1,0.0011]
[1770577501060,1.23271804,2111.5,2111.1,0.0011]
[1770577501724,0.001,2111.5,2111.1,0.95188443]
[1770577502847,3.311,2112.3,2111.2,0.95078443]
[1770577503045,4.49455684,2112.3,2111.2,0.95078443]
[1770577503251,0.04770879,2112.2,2111.2,0.95078443]
[1770577503752,0.04770879,2112.2,2111.4,0.95078443]
[1770577504159,1.23131134,2112.2,2111.4,0.95078443]
[1770577504329,0.04770879,2112.2,2111.4,0.95078443]
[1770577505740,0.04770879,2112.2,2111.5,1.18399242]
[1770577505944,0.04770879,2112.2,2111.5,2.13477685]
[1770577507059,0.04770879,2112.2,2111.6,0.95078443]
[1770577507959,0.04770879,2112.2,2111.7,1.18388028]
[1770577509340,4.49454404,2112.3,2111.7,1.18498028]
[1770577509663,0.001,2112.0,2111.7,2.13576471]
[1770577511075,0.001,2112.0,2111.8,0.95078443]
[1770577511367,0.001,2112.3,2111.8,0.95078443]
[1770577512369,0.001,2112.3,2111.9,2.1345526]
[1770577512876,0.001,2112.3,2111.9,1.18376817]
[1770577513092,0.001,2112.3,2112.0,0.95078443]
[1770577513373,0.001,2112.3,2111.8,1.18379281]
[1770577515941,0.001,2112.3,2111.7,4.73661473]
[1770577516367,0.9722959,2111.9,2111.5,0.0011]
[1770577517750,0.04770879,2111.9,2111.5,0.0011]
[1770577519668,1.18369946,2112.1,2111.5,0.0011]
[1770577519846,2.10828657,2112.1,2111.5,0.0011]
[1770577520045,0.04770879,2111.9,2111.5,0.0011]
[1770577521494,0.04770879,2111.9,2111.7,0.0011]
[1770577523461,0.92458711,2111.8,2111.5,0.0011]
[1770577524380,0.6,2111.7,2111.5,0.0011]
[1770577530263,0.001,2112.0,2111.5,0.94583715]
[1770577531664,0.001,2112.0,2111.7,0.94473715]
[1770577532764,0.001,2112.3,2111.7,0.94473715]
[1770577533669,0.001,2112.3,2111.9,0.94473715]
[1770577536392,0.001,2112.3,2112.0,1.18371212]
[1770577536591,0.9722959,2112.2,2111.7,0.0011]
[1770577538063,0.04770879,2112.2,2111.7,0.0011]
[1770577538291,0.04770879,2112.2,2111.7,1.18497008]
[1770577538889,0.04770879,2112.2,2111.7,0.0011]
[1770577540369,1.18458341,2112.3,2111.7,0.0011]
[1770577540891,0.001,2112.3,2111.7,0.94583715]
[1770577543572,0.001,2112.3,2111.8,1.18382422]
[1770577543773,0.001,2112.3,2111.8,2.12856137]
[1770577544994,0.001,2112.3,2111.7,4.7363969]
[1770577544995,0.001,2112.3,2111.7,0.0011]
[1770577545180,0.04770879,2112.2,2111.7,1.18497589]
[1770577545374,0.001,2112.3,2111.8,0.93822871]
[1770577545699,0.001,2112.3,2112.0,0.0011]
[1770577545909,0.001,2112.1,2112.0,0.0011]
[1770577549075,0.91550776,2112.8,2112.1,2.12188478]
[1770577550181,0.001,2113.0,2112.2,0.93822871]
[1770577552198,0.001,2113.0,2112.3,1.183544]
[1770577552403,0.001,2113.0,2112.4,0.93822871]
[1770577555403,0.001,2113.0,2112.6,0.93822871]
[1770577555907,0.04770879,2112.6,2112.2,1.18357389]
[1770577556104,0.91550776,2112.8,2112.3,1.18354089]
[1770577556310,0.04770879,2112.9,2112.3,1.18351304]
[1770577557810,0.04770879,2112.9,2112.4,0.0011]
[1770577558004,0.96321655,2112.9,2112.4,0.0011]
[1770577558194,0.001,2112.8,2112.4,0.0011]
[1770577559414,0.96321655,2112.6,2112.4,0.0011]
[1770577559887,0.04770879,2112.6,2112.4,0.0011]
[1770577560590,0.001,2112.8,2112.4,0.0011]
[1770577560800,1.18426699,2112.8,2112.4,0.0011]
[1770577561105,1.18426518,2112.8,2112.4,0.0011]
[1770577561305,0.001,2112.8,2112.4,0.0011]
[1770577561676,1.23092104,2112.9,2112.4,0.0011]
[1770577561988,1.22962983,2112.9,2112.4,0.0011]
[1770577562506,2.14513759,2112.9,2112.4,0.0011]
[1770577566214,0.04770879,2112.6,2112.4,0.0011]
[1770577567902,2.09880533,2112.8,2112.4,0.0011]
[1770577568509,0.04770879,2112.6,2112.4,0.0011]
[1770577579421,0.001,2112.7,2112.4,0.99120352]
[1770577579947,0.001,2112.7,2112.4,0.0011]
[1770577581830,0.001,2112.7,2112.4,2.17469149]
[1770577582646,0.001,2112.7,2112.6,0.0011]
[1770577590739,0.001,2112.7,2112.6,0.99120352]
[1770577590938,0.001,2112.7,2112.6,0.0011]
[1770577593346,0.001,2113.0,2112.7,0.99010352]
[1770577594650,0.001,2113.0,2112.6,0.99120352]
[1770577595226,1.03000764,2112.9,2112.6,0.0011]
[1770577595837,0.04770879,2112.9,2112.6,0.0011]
[1770577596323,1.03000764,2112.9,2112.6,0.0011]
[1770577596937,0.04770879,2112.9,2112.6,0.0011]
[1770577597319,2.2132173,2112.9,2112.6,0.0011]
[1770577597519,1.23091845,2112.9,2112.6,0.0011]
[1770577597756,2.2132173,2112.9,2112.6,0.0011]
[1770577598553,0.98229885,2112.8,2112.6,0.0011]
[1770577599428,2.16561877,2112.7,2112.6,0.0011]
[1770577599929,1.18331992,2112.7,2112.6,0.0011]
[1770577601751,1.13331992,2112.7,2112.6,0.0011]
[1770577602752,1.23096045,2112.9,2112.6,0.0011]
[1770577604438,0.001,2113.0,2112.6,0.99120352]
[1770577605436,0.04770879,2112.9,2112.6,0.0011]
[1770577605754,1.04405745,2112.9,2112.6,0.0011]
[1770577606149,0.001,2112.7,2112.6,0.0011]
[1770577609163,0.001,2112.7,2112.6,0.94543723]
[1770577610756,0.001,2113.0,2112.7,0.94433723]
[1770577613162,0.001,2113.0,2112.6,0.0011]
[1770577613362,0.04770879,2112.9,2112.6,0.0011]
[1770577614535,0.04770879,2112.8,2112.6,0.0011]
[1770577614743,0.04770879,2112.9,2112.6,0.0011]
[1770577615769,1.04405745,2112.9,2112.6,0.0011]
[1770577616066,0.04770879,2112.9,2112.6,0.0011]
[1770577617367,1.23095669,2112.9,2112.6,0.0011]
[1770577617744,1.23095669,2112.9,2112.8,0.0011]
[1770577621581,0.001,2113.0,2112.8,0.0011]
[1770577621757,0.04770879,2112.9,2112.8,0.0011]
[1770577622277,1.04405745,2112.9,2112.6,0.0011]
[1770577622466,0.04770879,2112.9,2112.6,0.0011]
[1770577627787,1.18416247,2113.0,2112.6,0.94543723]
[1770577628157,0.04770879,2112.9,2112.6,0.0011]
[1770577629089,1.23092306,2112.9,2112.6,0.0011]
[1770577629271,0.99634866,2112.8,2112.6,0.0011]
[1770577629881,0.001,2112.7,2112.6,0.0011]
[1770577632483,0.001,2112.7,2112.6,0.94543723]
[1770577632686,0.001,2112.7,2112.6,0.0011]
[1770577638096,0.97868293,2112.6,2112.4,0.0011]
[1770577638283,0.97868293,2112.6,2111.8,0.92422616]
[1770577638284,5.2508796,2112.5,2111.8,0.92422616]
[1770577638489,0.04770879,2112.3,2111.8,2.10804159]
[1770577639597,0.04770879,2112.3,2111.9,0.92312616]
[1770577648394,0.04770879,2112.3,2111.8,0.92422616]
[1770577648807,0.04770879,2112.0,2111.8,0.0011]
[1770577648976,0.93097414,2112.2,2111.8,0.0011]
[1770577649297,0.04770879,2112.0,2111.8,0.0011]
[1770577649977,0.04770879,2112.0,2111.7,0.0011]
[1770577649978,0.97868293,2112.0,2111.7,0.0011]
[1770577650179,0.97868293,2112.0,2111.5,0.0011]
[1770577650379,0.04770879,2111.7,2111.5,0.0011]
[1770577650685,0.04770879,2112.0,2111.5,0.92422616]
[1770577653712,1.23146817,2112.0,2111.5,0.92422616]
[1770577653899,1.23146817,2112.0,2111.8,0.0011]
[1770577655008,2.16244231,2112.0,2111.8,0.0011]
[1770577655616,1.18470792,2112.1,2111.8,0.0011]
[1770577655802,0.04770879,2112.0,2111.8,0.0011]
[1770577657713,1.23145174,2112.0,2111.8,0.0011]
[1770577660414,0.04770879,2112.0,2111.8,0.0011]
[1770577660599,0.001,2112.1,2111.8,0.92422616]
[1770577661309,0.001,2112.7,2112.1,0.92312616]
[1770577661637,0.001,2112.7,2112.3,0.92312616]
[1770577662490,0.001,2112.7,2112.5,0.92312616]
[1770577662690,0.001,2113.0,2112.7,0.92312616]
[1770577663116,0.001,2113.2,2112.9,0.92312616]
[1770577663322,4.4918487,2113.6,2112.9,0.92312616]
[1770577663491,0.001,2113.5,2112.9,0.92312616]
[1770577663912,1.23044606,2113.8,2112.9,0.92312616]
[1770577664294,0.001,2113.7,2113.1,0.92312616]
[1770577664496,0.93097414,2114.5,2113.5,0.92312616]
[1770577664796,0.04770879,2113.9,2113.3,0.92312616]
[1770577665617,0.001,2113.6,2113.3,0.92312616]